bitfinex/quotes_SOLUSD_20220212
["timestamp","ask_amount","ask_price","bid_price","bid_amount"]
[1644655845949,27.21837627,95.728,95.663,5.224]
[1644655846148,5.224,95.727,95.663,5.224]
[1644655846349,27.21837627,95.728,95.662,41.88083202]
[1644655846553,5.224,95.726,95.662,41.88083202]
[1644655846750,5.224,95.727,95.662,41.88083202]
[1644655846950,27.21837627,95.728,95.662,41.88083202]
[1644655849056,5.224,95.727,95.662,41.88083202]
[1644655849654,27.21837627,95.728,95.662,41.88083202]
[1644655850756,27.21837627,95.728,95.663,5.224]
[1644655851955,5.224,95.727,95.662,41.88083202]
[1644655854174,27.21837627,95.728,95.663,5.224]
[1644655856574,5.224,95.727,95.662,41.88083202]
[1644655858976,5.224,95.727,95.662,36.88083202]
[1644655860078,5.224,95.727,95.653,24.1037]
[1644655860278,14.434,95.727,95.653,24.1037]
[1644655860577,2.24732327,95.726,95.653,24.1037]
[1644655860784,5.224,95.725,95.653,24.1037]
[1644655860984,2.24732327,95.726,95.654,5.224]
[1644655861186,9.21,95.727,95.654,5.224]
[1644655861386,9.21,95.727,95.65,0.024]
[1644655861585,9.21,95.727,95.64,0.024]
[1644655861785,5.224,95.726,95.64,0.024]
[1644655862185,5.224,95.727,95.64,0.024]
[1644655862786,15.6863,95.72,95.64,0.024]
[1644655862985,5.224,95.719,95.64,0.024]
[1644655863187,15.6863,95.72,95.641,5.224]
[1644655863385,5.224,95.719,95.641,5.224]
[1644655865793,15.6879,95.71,95.641,5.224]
[1644655865993,14.12764138,95.709,95.641,5.224]
[1644655866190,24.501,95.708,95.64,0.024]
[1644655866389,24.501,95.708,95.635,26.04264817]
[1644655866390,5.226,95.707,95.635,26.04264817]
[1644655866592,5.226,95.707,95.648,1.43874817]
[1644655866992,5.226,95.707,95.645,1.43874817]
[1644655867589,24.501,95.708,95.644,1.43874817]
[1644655867791,5.224,95.707,95.644,1.43874817]
[1644655868190,24.501,95.708,95.645,6.66274817]
[1644655868390,24.501,95.708,95.645,1.43874817]
[1644655868789,15.6897,95.7,95.64,0.024]
[1644655869090,15.6897,95.7,95.6,46.8203]
[1644655869091,5.226,95.699,95.631,1.43874817]
[1644655869291,5.226,95.699,95.63,1.46274817]
[1644655869792,5.226,95.699,95.632,1.43874817]
[1644655869793,15.6914,95.69,95.632,1.43874817]
[1644655869992,5.226,95.707,95.633,43.38807003]
[1644655870191,48.2227,95.708,95.632,1.43874817]
[1644655870394,5.226,95.706,95.631,1.43874817]
[1644655870601,5.226,95.707,95.63,1.46274817]
[1644655870798,48.2227,95.708,95.631,5.226]
[1644655871196,41.26401809,95.707,95.636,1.43874817]
[1644655871400,41.26401809,95.707,95.637,5.226]
[1644655871599,5.226,95.706,95.635,1.43874817]
[1644655872009,5.226,95.706,95.636,1.43874817]
[1644655872397,5.226,95.706,95.637,1.43874817]
[1644655872601,5.226,95.706,95.635,1.43874817]
[1644655873105,5.226,95.706,95.636,6.66474817]
[1644655873298,5.226,95.706,95.637,1.43874817]
[1644655873499,5.226,95.706,95.635,6.66474817]
[1644655874702,5.226,95.706,95.638,1.43874817]
[1644655875099,5.226,95.706,95.634,5.226]
[1644655875100,5.226,95.706,95.636,1.43874817]
[1644655876306,5.226,95.706,95.637,5.226]
[1644655877304,5.226,95.706,95.639,1.43874817]
[1644655877504,41.26401809,95.707,95.638,1.43874817]
[1644655877707,5.226,95.729,95.639,1.43874817]
[1644655877914,5.226,95.735,95.64,0.024]
[1644655878104,5.224,95.729,95.65,0.024]
[1644655878306,5.224,95.734,95.651,1.43874817]
[1644655878503,22.7787,95.739,95.652,1.43874817]
[1644655878504,5.224,95.738,95.652,1.43874817]
[1644655878705,5.224,95.733,95.653,47.60187211]
[1644655878906,44.62327001,95.737,95.654,24.9753]
[1644655879107,5.224,95.732,95.654,24.9753]
[1644655879307,5.224,95.736,95.66,0.024]
[1644655880809,15.6848,95.73,95.66,0.024]
[1644655881010,5.224,95.729,95.66,0.024]
[1644655881910,24.4409,95.728,95.66,0.024]
[1644655882112,5.224,95.727,95.66,0.024]
[1644655882312,24.4409,95.728,95.66,0.024]
[1644655882611,5.224,95.727,95.66,0.024]
[1644655886013,24.4409,95.728,95.66,0.024]
[1644655887515,5.224,95.727,95.66,0.024]
[1644655890819,24.4409,95.728,95.66,0.024]
[1644655892017,5.224,95.727,95.66,0.024]
[1644655893723,5.224,95.727,95.654,24.9753]
[1644655893924,15.6864,95.72,95.654,24.9753]
[1644655894122,5.224,95.719,95.654,24.9753]
[1644655894552,1.94674764,95.718,95.654,24.9753]
[1644655894755,5.224,95.717,95.654,24.9753]
[1644655895051,23.8929,95.716,95.654,24.9753]
[1644655895951,5.224,95.715,95.654,24.9753]
[1644655896353,5.224,95.715,95.655,43.28258322]
[1644655896553,23.8929,95.716,95.655,43.28258322]
[1644655896755,23.8929,95.716,95.654,24.9753]
[1644655899356,5.224,95.715,95.654,24.9753]
[1644655901158,23.8929,95.716,95.654,24.9753]
[1644655902559,5.224,95.715,95.654,24.9753]
[1644655903060,23.8929,95.716,95.654,24.9753]
[1644655904661,5.224,95.715,95.654,24.9753]
[1644655904861,23.8929,95.716,95.654,24.9753]
[1644655906267,5.224,95.715,95.654,24.9753]
[1644655907666,23.8929,95.716,95.654,24.9753]
[1644655907868,5.224,95.715,95.654,24.9753]
[1644655908867,23.8929,95.716,95.654,24.9753]
[1644655913974,5.224,95.715,95.654,24.9753]
[1644655915873,5.224,95.715,95.654,26.41404817]
[1644655916072,5.224,95.715,95.654,24.9753]
[1644655916473,5.224,95.715,95.654,26.41404817]
[1644655916874,5.224,95.715,95.654,62.55292987]
[1644655917076,15.688,95.71,95.654,1.43874817]
[1644655917274,5.224,95.709,95.64,0.024]
[1644655917574,29.8468,95.715,95.634,1.43874817]
[1644655917775,5.226,95.708,95.64,0.024]
[1644655917975,15.08,95.71,95.634,1.43874817]
[1644655918176,5.226,95.707,95.632,1.43874817]
[1644655918376,5.226,95.709,95.635,1.43874817]
[1644655918574,15.08,95.71,95.635,1.43874817]
[1644655918776,15.6912,95.69,95.636,1.43874817]
[1644655918975,15.6912,95.69,95.631,41.33341379]
[1644655918976,39.39927001,95.688,95.631,41.33341379]
[1644655919378,39.39927001,95.688,95.63,0.024]
[1644655919581,5.226,95.687,95.63,0.024]
[1644655921786,5.226,95.687,95.627,1.43874817]
[1644655922183,5.226,95.687,95.626,1.43874817]
[1644655922582,39.39927001,95.688,95.625,43.03700847]
[1644655922782,5.227,95.686,95.625,43.03700847]
[1644655922981,5.227,95.687,95.625,43.03700847]
[1644655924487,5.227,95.687,95.625,1.43874817]
[1644655924683,39.39927001,95.688,95.623,1.43874817]
[1644655925384,39.39927001,95.688,95.623,42.80284352]
[1644655925784,39.39927001,95.688,95.623,1.43874817]
[1644655926084,39.39927001,95.688,95.622,23.3175]
[1644655927484,15.6931,95.68,95.623,5.227]
[1644655927686,15.6931,95.68,95.614,1.43874817]
[1644655927888,5.227,95.679,95.61,0.024]
[1644655928585,15.6945,95.67,95.61,0.024]
[1644655928786,26.45524764,95.669,95.6,1.43874817]
[1644655928988,26.45524764,95.669,95.598,22.9532]
[1644655929185,26.45524764,95.669,95.598,24.39194817]
[1644655930590,5.228,95.668,95.598,24.39194817]
[1644655930991,15.6963,95.66,95.598,1.43874817]
[1644655931192,5.228,95.659,95.591,1.43874817]
[1644655931393,5.228,95.659,95.59,0.024]
[1644655931592,5.228,95.659,95.57,1.46274817]
[1644655931593,23.4302,95.658,95.57,1.46274817]
[1644655931793,5.229,95.657,95.58,0.024]
[1644655931994,15.6995,95.64,95.58,0.024]
[1644655932194,38.01442911,95.639,95.566,23.3758]
[1644655932794,24.9286,95.638,95.566,23.3758]
[1644655932995,24.9286,95.638,95.567,5.229]
[1644655933796,15.7012,95.63,95.567,5.229]
[1644655933994,5.23,95.629,95.567,5.229]
[1644655935197,15.7012,95.63,95.567,5.229]
[1644655935400,5.23,95.629,95.567,5.229]
[1644655936623,5.23,95.629,95.566,23.3758]
[1644655945632,5.23,95.637,95.567,2.38366791]
[1644655945831,24.9286,95.638,95.568,5.23]
[1644655946432,33.42373963,95.637,95.567,5.229]
[1644655947838,33.42373963,95.637,95.568,1.43874817]
[1644655948035,33.42373963,95.637,95.569,5.229]
[1644655948237,5.229,95.636,95.568,1.43874817]
[1644655948837,33.42373963,95.637,95.569,5.23]
[1644655949036,5.229,95.636,95.569,5.23]
[1644655949237,5.229,95.636,95.57,1.43874817]
[1644655949438,5.229,95.636,95.569,5.23]
[1644655949638,33.42373963,95.637,95.569,5.23]
[1644655949837,24.9286,95.638,95.569,5.23]
[1644655950239,24.9286,95.638,95.569,6.66874817]
[1644655950539,24.9286,95.638,95.57,1.43874817]
[1644655951547,24.9286,95.638,95.571,1.43874817]
[1644655951946,5.229,95.637,95.571,1.43874817]
[1644655952347,5.229,95.637,95.572,1.43874817]
[1644655952548,24.9286,95.638,95.572,1.43874817]
[1644655952749,5.229,95.637,95.575,1.43874817]
[1644655952949,24.9286,95.638,95.575,1.43874817]
[1644655953151,5.229,95.637,95.574,1.43874817]
[1644655953349,5.229,95.637,95.575,1.43874817]
[1644655953549,24.9286,95.638,95.575,1.43874817]
[1644655954250,24.9286,95.638,95.572,1.43874817]
[1644655954451,5.229,95.637,95.572,1.43874817]
[1644655954649,24.9286,95.638,95.573,6.66774817]
[1644655954849,24.9286,95.638,95.573,1.43874817]
[1644655955051,5.229,95.637,95.572,1.43874817]
[1644655955249,5.229,95.637,95.573,1.43874817]
[1644655955653,24.9286,95.638,95.58,46.96741808]
[1644655955852,24.9286,95.638,95.581,1.43874817]
[1644655956052,5.229,95.637,95.58,46.96741808]
[1644655956250,24.9286,95.638,95.581,5.229]
[1644655956452,5.229,95.637,95.58,46.96741808]
[1644655956650,5.229,95.637,95.581,23.6518]
[1644655958053,5.229,95.637,95.583,1.43874817]
[1644655960255,5.229,95.637,95.584,1.43874817]
[1644655961163,5.229,95.637,95.587,1.43874817]
[1644655962288,24.9286,95.638,95.587,1.43874817]
[1644655963494,5.229,95.637,95.587,1.43874817]
[1644655964090,5.229,95.637,95.59,1.43874817]
[1644655964291,24.9286,95.638,95.59,1.43874817]
[1644655964495,24.9286,95.638,95.589,1.43874817]
[1644655965093,5.229,95.637,95.585,1.43874817]
[1644655965291,5.229,95.637,95.583,1.43874817]
[1644655965492,5.229,95.637,95.582,1.43874817]
[1644655966500,5.229,95.637,95.586,1.43874817]
[1644655966694,24.9286,95.638,95.587,47.40296209]
[1644655968197,24.9286,95.638,95.587,48.84171026]
[1644655968397,5.229,95.637,95.587,48.84171026]
[1644655968599,24.9286,95.638,95.587,48.84171026]
[1644655969500,5.229,95.661,95.59,1.43874817]
[1644655969501,15.6967,95.66,95.59,1.43874817]
[1644655969698,5.229,95.676,95.596,1.43874817]
[1644655969999,2.24621151,95.677,95.597,5.228]
[1644655970198,2.24621151,95.677,95.59,0.024]
[1644655970199,5.228,95.675,95.6,0.024]
[1644655970399,36.84722455,95.675,95.6,0.024]
[1644655970601,5.228,95.674,95.6,0.024]
[1644655970899,15.6951,95.67,95.6,0.024]
[1644655971701,22.7809,95.669,95.6,0.024]
[1644655971902,15.6971,95.66,95.588,1.43874817]
[1644655972105,15.6971,95.66,95.59,0.024]
[1644655972301,5.229,95.659,95.59,0.024]
[1644655972502,5.228,95.667,95.59,0.024]
[1644655972705,5.228,95.667,95.564,4.13862086]
[1644655972706,24.4982,95.668,95.585,1.43874817]
[1644655972904,5.228,95.666,95.59,0.024]
[1644655973105,5.229,95.667,95.582,1.43874817]
[1644655973306,5.229,95.667,95.58,0.024]
[1644655973307,5.228,95.665,95.58,1.46274817]
[1644655973607,5.228,95.666,95.58,0.024]
[1644655973805,15.6985,95.65,95.58,0.024]
[1644655974013,4.4987931,95.648,95.58,0.024]
[1644655974408,5.229,95.647,95.58,0.024]
[1644655975504,5.229,95.647,95.584,1.43874817]
[1644655975705,4.4987931,95.648,95.584,1.43874817]
[1644655975905,5.229,95.647,95.582,25.60044817]
[1644655976107,5.229,95.647,95.582,24.1617]
[1644655976507,15.7001,95.64,95.582,24.1617]
[1644655976707,5.229,95.639,95.582,24.1617]
[1644655976904,23.3037,95.638,95.582,24.1617]
[1644655977106,5.229,95.637,95.582,24.1617]
[1644655977705,23.3037,95.638,95.582,24.1617]
[1644655978506,5.229,95.637,95.582,24.1617]
[1644655978709,5.229,95.637,95.574,1.43874817]
[1644655978908,5.229,95.637,95.573,1.43874817]
[1644655979107,5.229,95.637,95.572,1.43874817]
[1644655979309,5.229,95.637,95.57,1.46274817]
[1644655979511,5.229,95.637,95.571,1.43874817]
[1644655979709,5.229,95.637,95.573,1.43874817]
[1644655979908,5.229,95.637,95.574,1.43874817]
[1644655980306,15.7017,95.63,95.574,1.43874817]
[1644655980506,15.7017,95.63,95.571,24.7845]
[1644655981109,36.84722455,95.629,95.571,24.7845]
[1644655981312,5.23,95.628,95.571,24.7845]
[1644655981508,5.23,95.628,95.57,0.024]
[1644655981810,15.7034,95.62,95.57,0.024]
[1644655982008,5.23,95.619,95.557,1.43874817]
[1644655982408,5.23,95.619,95.556,1.43874817]
[1644655982813,5.23,95.619,95.557,1.43874817]
[1644655983009,5.23,95.619,95.552,1.43874817]
[1644655983209,15.7034,95.62,95.554,1.43874817]
[1644655983410,15.7034,95.62,95.555,5.23]
[1644655984611,5.23,95.619,95.555,5.23]
[1644655984808,15.7034,95.62,95.555,5.23]
[1644655986009,5.23,95.619,95.555,5.23]
[1644655987311,5.23,95.619,95.551,22.8949]
[1644655988612,15.7048,95.61,95.551,28.1249]
[1644655988913,4.4987931,95.609,95.551,22.8949]
[1644655989117,34.0514931,95.609,95.551,22.8949]
[1644655989313,28.8204931,95.609,95.551,22.8949]
[1644655993817,34.0514931,95.609,95.551,22.8949]
[1644655995844,34.0514931,95.609,95.552,37.62694231]
[1644655997044,28.8204931,95.609,95.552,37.62694231]
[1644655997946,5.231,95.608,95.552,37.62694231]
[1644655999455,5.231,95.608,95.55,0.024]
[1644655999652,68.0,95.599,95.528,5.231]
[1644655999854,15.08,95.59,95.528,5.231]
[1644656000059,5.232,95.589,95.5,30.0]
[1644656000453,33.95952086,95.588,95.5,30.0]
[1644656000651,5.232,95.587,95.5,30.0]
[1644656000852,7.48395542,95.587,95.5,30.0]
[1644656001053,545.88147716,95.587,95.5,30.0]
[1644656001252,2.25195542,95.586,95.5,30.0]
[1644656001451,27.8822,95.585,95.5,30.0]
[1644656001654,15.08,95.57,95.5,30.0]
[1644656001852,15.7162,95.55,95.5,30.0]
[1644656002061,5.234,95.549,95.5,30.0]
[1644656002752,11.47599679,95.548,95.5,30.0]
[1644656002954,5.234,95.547,95.5,30.0]
[1644656004456,11.47599679,95.548,95.5,30.0]
[1644656006054,30.7962,95.55,95.5,30.0]
[1644656006457,5.234,95.549,95.5,30.0]
[1644656006657,30.7962,95.55,95.5,30.0]
[1644656006957,35.56817447,95.549,95.5,30.0]
[1644656009259,40.80217447,95.549,95.5,30.0]
[1644656009559,30.7962,95.55,95.5,30.0]
[1644656010460,30.7962,95.55,95.501,2.38366791]
[1644656011861,15.08,95.55,95.501,2.38366791]
[1644656012061,5.234,95.569,95.501,12.10366791]
[1644656012262,5.234,95.579,95.501,12.10366791]
[1644656012465,24.4929,95.586,95.501,12.10366791]
[1644656012466,29.7249,95.586,95.501,12.10366791]
[1644656012862,31.17310897,95.585,95.501,12.10366791]
[1644656013063,5.232,95.584,95.502,5.232]
[1644656013965,15.7122,95.57,95.502,5.232]
[1644656014167,28.946,95.569,95.502,5.232]
[1644656014364,28.946,95.569,95.501,2.38366791]
[1644656016665,28.946,95.569,95.502,5.232]
[1644656016866,23.714,95.569,95.502,5.232]
[1644656017669,5.232,95.568,95.501,5.232]
[1644656018771,23.714,95.569,95.501,5.232]
[1644656019177,5.232,95.568,95.501,5.232]
[1644656020574,15.7122,95.57,95.501,5.232]
[1644656020775,22.8663,95.584,95.502,2.38366791]
[1644656022091,22.8663,95.584,95.503,5.232]
[1644656022292,5.232,95.583,95.502,2.38366791]
[1644656022491,5.232,95.583,95.504,2.38366791]
[1644656022692,22.8663,95.584,95.504,2.38366791]
[1644656022895,22.8663,95.584,95.505,5.232]
[1644656023198,22.8663,95.584,95.506,2.38366791]
[1644656023393,5.232,95.583,95.51,0.024]
[1644656023793,5.232,95.583,95.51,2.40766791]
[1644656025291,22.8663,95.584,95.51,2.40766791]
[1644656025693,15.7107,95.58,95.51,0.024]
[1644656025895,5.232,95.579,95.507,22.9391]
[1644656026094,15.7107,95.58,95.507,22.9391]
[1644656028195,5.232,95.579,95.507,22.9391]
[1644656030603,15.7107,95.58,95.507,22.9391]
[1644656030801,15.7107,95.58,95.508,2.38366791]
[1644656031006,5.232,95.579,95.509,5.232]
[1644656031400,5.232,95.579,95.508,5.232]
[1644656032799,15.7107,95.58,95.508,6.67074817]
[1644656032999,5.232,95.579,95.508,1.43874817]
[1644656033409,5.232,95.579,95.507,22.9391]
[1644656034501,5.232,95.579,95.507,24.37784817]
[1644656036606,5.232,95.579,95.508,1.43874817]
[1644656036805,15.7107,95.58,95.508,1.43874817]
[1644656037606,15.7107,95.58,95.509,1.43874817]
[1644656037807,5.232,95.579,95.509,1.43874817]
[1644656039013,15.7107,95.58,95.51,5.232]
[1644656039208,15.7107,95.58,95.511,1.43874817]
[1644656039407,15.7107,95.58,95.51,1.46274817]
[1644656039608,15.7107,95.58,95.511,6.67074817]
[1644656039810,15.7107,95.58,95.511,5.232]
[1644656041014,5.232,95.579,95.511,5.232]
[1644656042014,5.232,95.579,95.509,1.43874817]
[1644656042912,5.232,95.579,95.51,1.43874817]
[1644656043412,5.232,95.579,95.511,5.232]
[1644656044815,5.232,95.579,95.509,1.43874817]
[1644656045614,5.232,95.579,95.51,1.43874817]
[1644656046215,5.232,95.579,95.511,1.43874817]
[1644656046814,5.232,95.579,95.507,22.9391]
[1644656046815,5.232,95.579,95.51,1.43874817]
[1644656048245,15.7107,95.58,95.51,1.43874817]
[1644656048421,5.232,95.579,95.511,1.43874817]
[1644656049622,5.232,95.579,95.512,1.43874817]
[1644656050826,5.232,95.579,95.511,1.43874817]
[1644656051126,15.7107,95.58,95.51,1.43874817]
[1644656051323,5.232,95.578,95.51,1.46274817]
[1644656051526,5.232,95.579,95.509,1.43874817]
[1644656051724,15.7107,95.58,95.511,1.43874817]
[1644656053129,5.232,95.579,95.511,1.43874817]
[1644656054430,5.232,95.579,95.512,1.43874817]
[1644656055231,5.232,95.579,95.513,1.43874817]
[1644656057153,15.7107,95.58,95.514,5.232]
[1644656057356,538.39752174,95.587,95.514,5.232]
[1644656057556,538.39752174,95.587,95.521,1.43874817]
[1644656057954,538.39752174,95.587,95.535,1.43874817]
[1644656058353,538.39752174,95.587,95.548,1.43874817]
[1644656058554,538.39752174,95.587,95.549,1.43874817]
[1644656058754,538.39752174,95.587,95.549,3.82241608]
[1644656058954,538.39752174,95.587,95.55,2.38366791]
[1644656059154,5.231,95.621,95.551,5.231]
[1644656059357,5.231,95.621,95.552,24.7333]
[1644656060356,5.231,95.621,95.553,5.23]
[1644656062657,5.23,95.625,95.553,5.23]
[1644656063060,5.23,95.625,95.554,2.38366791]
[1644656063258,5.23,95.636,95.555,5.23]
[1644656063458,5.23,95.641,95.555,5.23]
[1644656063659,59.91834647,95.643,95.556,2.38366791]
[1644656064058,59.91834647,95.643,95.557,5.23]
[1644656064458,59.91834647,95.643,95.558,2.38366791]
[1644656064657,54.68834647,95.643,95.558,2.38366791]
[1644656064859,54.68834647,95.643,95.559,5.23]
[1644656065360,54.68834647,95.643,95.56,2.38366791]
[1644656065560,5.23,95.642,95.559,5.23]
[1644656066061,7.47653787,95.642,95.559,5.23]
[1644656066761,15.7003,95.64,95.559,5.23]
[1644656066960,5.23,95.639,95.559,5.23]
[1644656068963,15.7021,95.63,95.559,5.23]
[1644656069172,15.7021,95.63,95.552,24.7333]
[1644656069367,29.1126,95.629,95.552,24.7333]
[1644656069763,29.1126,95.629,95.53,0.024]
[1644656069965,15.7038,95.62,95.53,0.024]
[1644656070164,5.231,95.619,95.53,0.024]
[1644656071465,15.7062,95.61,95.53,0.024]
[1644656071672,1.48287421,95.646,95.54,15.08]
[1644656071866,5.231,95.682,95.568,1.43874817]
[1644656072067,1.48287421,95.691,95.58,15.08]
[1644656072268,5.228,95.688,95.581,5.228]
[1644656072470,34.49023801,95.691,95.582,42.67623096]
[1644656072669,5.228,95.69,95.583,5.228]
[1644656072868,5.228,95.69,95.583,7.61166791]
[1644656073871,20.9204,95.69,95.583,7.61166791]
[1644656074071,20.9204,95.69,95.584,2.38366791]
[1644656074273,20.9204,95.69,95.585,5.228]
[1644656074673,20.9204,95.69,95.586,2.38366791]
[1644656075073,20.9204,95.69,95.587,5.228]
[1644656075474,20.9204,95.69,95.588,2.38366791]
[1644656076775,5.228,95.69,95.588,2.38366791]
[1644656076975,5.227,95.692,95.59,15.08]
[1644656077176,5.227,95.702,95.59,15.08]
[1644656077376,5.227,95.709,95.591,14.56538981]
[1644656077576,5.227,95.701,95.591,19.79238981]
[1644656077777,40.09953675,95.708,95.592,14.56538981]
[1644656077977,5.227,95.707,95.593,5.227]
[1644656078179,5.227,95.707,95.593,19.79238981]
[1644656078381,5.227,95.707,95.594,2.38366791]
[1644656078580,5.227,95.707,95.595,5.227]
[1644656078779,5.227,95.707,95.6,15.6883]
[1644656078979,5.227,95.707,95.61,15.08]
[1644656079181,5.227,95.707,95.612,38.98523648]
[1644656079381,5.227,95.707,95.613,5.226]
[1644656079881,5.227,95.707,95.614,2.38366791]
[1644656080081,5.227,95.707,95.615,5.226]
[1644656080382,5.227,95.707,95.616,2.38366791]
[1644656081484,5.227,95.707,95.63,15.08]
[1644656081686,339.64714837,95.72,95.63,15.08]
[1644656081883,339.64714837,95.72,95.631,31.0769584]
[1644656082106,5.226,95.745,95.631,46.21421241]
[1644656082306,5.226,95.745,95.632,31.0769584]
[1644656082506,15.4125,95.755,95.632,31.0769584]
[1644656082809,5.224,95.754,95.64,15.6808]
[1644656083011,5.224,95.756,95.65,15.08]
[1644656083205,15.6681,95.774,95.65,15.08]
[1644656083206,5.224,95.757,95.65,15.08]
[1644656083412,5.224,95.773,95.651,14.56538981]
[1644656083607,5.224,95.756,95.651,14.56538981]
[1644656083807,5.223,95.775,95.652,19.78838981]
[1644656084007,37.98526772,95.774,95.652,52.72480511]
[1644656084213,37.98526772,95.774,95.653,14.56538981]
[1644656084508,5.223,95.773,95.653,5.223]
[1644656084707,5.223,95.773,95.67,15.6769]
[1644656084908,5.223,95.773,95.671,5.223]
[1644656085114,5.223,95.773,95.671,7.60666791]
[1644656085308,5.223,95.773,95.672,2.38366791]
[1644656085516,5.223,95.773,95.673,5.223]
[1644656085911,5.223,95.773,95.674,2.38366791]
[1644656086208,37.98526772,95.774,95.674,2.38366791]
[1644656086909,53.83696772,95.774,95.674,2.38366791]
[1644656087408,53.83696772,95.774,95.675,5.223]
[1644656087811,53.83696772,95.774,95.676,2.38366791]
[1644656088011,53.83696772,95.774,95.68,15.08]
[1644656088211,53.83696772,95.774,95.681,45.01894891]
[1644656088514,5.223,95.773,95.681,47.40261682]
[1644656088713,37.98526772,95.774,95.682,7.60666791]
[1644656089111,37.98526772,95.774,95.683,2.38366791]
[1644656089311,37.98526772,95.774,95.684,5.223]
[1644656089510,5.223,95.773,95.683,2.38366791]
[1644656089711,5.223,95.773,95.681,50.24194891]
[1644656089914,5.223,95.773,95.685,2.38366791]
[1644656091516,5.223,95.773,95.685,10.77366791]
[1644656091916,5.223,95.773,95.686,2.38366791]
[1644656093414,5.223,95.773,95.687,5.223]
[1644656093817,5.223,95.773,95.688,2.38366791]
[1644656094215,5.223,95.773,95.689,5.222]
[1644656094514,5.223,95.773,95.688,2.38366791]
[1644656095917,37.98526772,95.774,95.688,2.38366791]
[1644656097119,37.98526772,95.774,95.681,45.01894891]
[1644656098020,15.6803,95.78,95.682,2.38366791]
[1644656098221,5.222,95.787,95.69,15.08]
[1644656098626,5.222,95.787,95.691,2.38366791]
[1644656098828,47.9031,95.788,95.692,5.222]
[1644656099025,34.2213923,95.787,95.692,5.222]
[1644656099227,34.2213923,95.787,95.693,2.38366791]
[1644656099630,5.222,95.786,95.693,2.38366791]
[1644656100125,5.222,95.786,95.69,15.08]
[1644656100324,5.222,95.786,95.691,5.222]
[1644656100532,34.2213923,95.787,95.691,5.222]
[1644656101129,34.2213923,95.787,95.692,2.38366791]
[1644656101329,5.222,95.786,95.692,2.38366791]
[1644656101531,34.2213923,95.787,95.692,2.38366791]
[1644656101829,5.222,95.786,95.692,2.38366791]
[1644656102335,5.222,95.786,95.69,15.08]
[1644656102930,5.222,95.786,95.69,17.46366791]
[1644656103648,5.222,95.786,95.691,5.222]
[1644656104032,5.222,95.786,95.692,2.38366791]
[1644656104340,5.222,95.786,95.693,5.222]
[1644656104731,5.222,95.786,95.694,2.38366791]
[1644656105131,5.222,95.786,95.695,5.222]
[1644656105834,5.222,95.786,95.696,2.38366791]
[1644656108668,15.6765,95.78,95.696,2.38366791]
[1644656108864,5.222,95.779,95.696,2.38366791]
[1644656109762,5.222,95.779,95.682,2.38366791]
[1644656109963,5.222,95.779,95.682,7.60666791]
[1644656110364,5.222,95.779,95.683,2.38366791]
[1644656110864,5.222,95.779,95.684,23.4016]
[1644656111163,1.48287421,95.776,95.684,23.4016]
[1644656111469,5.223,95.775,95.684,23.4016]
[1644656111667,24.5938,95.774,95.684,23.4016]
[1644656111864,5.223,95.773,95.684,23.4016]
[1644656112967,24.5938,95.774,95.685,2.38366791]
[1644656113165,24.5938,95.774,95.686,1.43874817]